Workbook

Sheet Sheet1
A1: 六盘水市公安机关2023年面向社会公开招聘留置看护人员总成绩及体能测评情况表
A2: 序号 | B2: 姓名 | C2: 报考单位 | D2: 准考证号 | E2: 笔试成绩 | F2: 面试成绩 | G2: 总成绩 | H2: 体能测评成绩 | I2: 备注
A3: 1 | B3: 陈真婵 | C3: 六盘水市公安局01 | D3: 202301031824 | E3: 131.5 | F3: 83.2 | G3: 85.43 | H3: 合格
A4: 2 | B4: 邓洪艳 | C4: 六盘水市公安局01 | D4: 202301021811 | E4: 130.4 | F4: 83.2 | G4: 85.07 | H4: 合格
A5: 3 | B5: 王菊 | C5: 六盘水市公安局01 | D5: 202301014617 | E5: 131.8 | F5: 80.2 | G5: 84.03 | H5: 合格
A6: 4 | B6: 范亚 | C6: 六盘水市公安局01 | D6: 202301034019 | E6: 132.8 | F6: 79.2 | G6: 83.87 | H6: 合格
A7: 5 | B7: 王燕 | C7: 六盘水市公安局01 | D7: 202301014021 | E7: 128.1 | F7: 79.8 | G7: 82.60 | H7: 合格
A8: 6 | B8: 陈丹 | C8: 六盘水市公安局01 | D8: 202301020205 | E8: 128.7 | F8: 78 | G8: 81.90 | H8: 合格
A9: 7 | B9: 张阳凯斐 | C9: 六盘水市公安局01 | D9: 202301030825 | E9: 130.8 | F9: 82.8 | G9: 85.00 | H9: 不合格
A10: 8 | B10: 代鹏燕 | C10: 六盘水市公安局01 | D10: 202301011923 | E10: 131.1 | F10: 79.6 | G10: 83.50 | H10: 不合格
A11: 9 | B11: 路美林 | C11: 六盘水市公安局01 | D11: 202301030601 | E11: 129 | F11: 79.6 | G11: 82.80 | H11: 不合格
A12: 10 | B12: 胡冰凌 | C12: 六盘水市公安局01 | D12: 202301020328 | E12: 132.4 | F12: 76.6 | G12: 82.43 | H12: 不合格
A13: 11 | B13: 苟琴 | C13: 六盘水市公安局01 | D13: 202301020528 | E13: 130.7 | F13: 77.2 | G13: 82.17 | H13: 不合格
A14: 12 | B14: 陈雪平 | C14: 六盘水市公安局01 | D14: 202301021508 | E14: 129.5 | F14: 缺考 | G14: =(E14/1.5)*0.5 -> 43.17 | H14: 缺考
A15: 13 | B15: 陈宜鑫 | C15: 六盘水市公安局01 | D15: 202302010120 | E15: 131.4 | F15: 82.2 | G15: 84.90 | H15: 合格
A16: 14 | B16: 陈习浪 | C16: 六盘水市公安局01 | D16: 202302023506 | E16: 130.2 | F16: 82.6 | G16: 84.70 | H16: 合格
A17: 15 | B17: 代华剑 | C17: 六盘水市公安局01 | D17: 202302012707 | E17: 125.6 | F17: 84.2 | G17: 83.97 | H17: 合格
A18: 16 | B18: 郑栋之 | C18: 六盘水市公安局01 | D18: 202302030718 | E18: 128.7 | F18: 80.6 | G18: 83.20 | H18: 合格
A19: 17 | B19: 田靖 | C19: 六盘水市公安局01 | D19: 202302030213 | E19: 127.1 | F19: 80.6 | G19: 82.67 | H19: 合格
A20: 18 | B20: 管洪金 | C20: 六盘水市公安局01 | D20: 202302021904 | E20: 129.5 | F20: 78.4 | G20: 82.37 | H20: 合格
A21: 19 | B21: 聂成 | C21: 六盘水市公安局01 | D21: 202302014023 | E21: 134.4 | F21: 73.2 | G21: 81.40 | H21: 合格
A22: 20 | B22: 许涛 | C22: 六盘水市公安局01 | D22: 202302021707 | E22: 127.2 | F22: 77.4 | G22: 81.10 | H22: 合格
A23: 21 | B23: 杨啟珣 | C23: 六盘水市公安局01 | D23: 202302013908 | E23: 130.4 | F23: 74 | G23: 80.47 | H23: 合格
A24: 22 | B24: 袁琰喆 | C24: 六盘水市公安局01 | D24: 202302022310 | E24: 125.9 | F24: 74.4 | G24: 79.17 | H24: 合格
A25: 23 | B25: 李发状 | C25: 六盘水市公安局01 | D25: 202302024217 | E25: 127.2 | F25: 71.6 | G25: 78.20 | H25: 合格
A26: 24 | B26: 尚涛 | C26: 六盘水市公安局01 | D26: 202302012811 | E26: 126 | F26: 71 | G26: 77.50 | H26: 合格
A27: 25 | B27: 李旭 | C27: 六盘水市公安局01 | D27: 202302011411 | E27: 126.2 | F27: 69 | G27: 76.57 | H27: 合格
A28: 26 | B28: 杨超勇 | C28: 六盘水市公安局01 | D28: 202302023707 | E28: 129.1 | F28: 78 | G28: 82.03 | H28: 不合格
A29: 27 | B29: 任骏骏 | C29: 六盘水市公安局01 | D29: 202302012602 | E29: 134.2 | F29: 74.4 | G29: 81.93 | H29: 不合格
A30: 28 | B30: 唐俊杰 | C30: 六盘水市公安局01 | D30: 202302023609 | E30: 125.2 | F30: 80.2 | G30: 81.83 | H30: 不合格
A31: 29 | B31: 常梓健 | C31: 六盘水市公安局01 | D31: 202302013918 | E31: 128.9 | F31: 77 | G31: 81.47 | H31: 不合格
A32: 30 | B32: 邓洪 | C32: 六盘水市公安局01 | D32: 202302033802 | E32: 131.5 | F32: 73.2 | G32: 80.43 | H32: 不合格
A33: 31 | B33: 黄富裕 | C33: 六盘水市公安局01 | D33: 202302020820 | E33: 125.7 | F33: 76.8 | G33: 80.30 | H33: 不合格
A34: 32 | B34: 李文渊 | C34: 六盘水市公安局01 | D34: 202302014418 | E34: 127.8 | F34: 74.6 | G34: 79.90 | H34: 不合格
A35: 33 | B35: 刘彬 | C35: 六盘水市公安局01 | D35: 202302032111 | E35: 128.8 | F35: 72 | G35: 78.93 | H35: 不合格
A36: 34 | B36: 郑国徽 | C36: 六盘水市公安局01 | D36: 202302031704 | E36: 126.5 | F36: 74.4 | G36: 79.37 | H36: 缺考
A37: 35 | B37: 卯明院 | C37: 六盘水市公安局01 | D37: 202302031322 | E37: 126.6 | F37: 73 | G37: 78.70 | H37: 缺考
A38: 36 | B38: 付成江 | C38: 六盘水市公安局01 | D38: 202302032002 | E38: 124.7 | F38: 73.8 | G38: 78.47 | H38: 缺考
A39: 37 | B39: 柏艺尘 | C39: 六盘水市公安局01 | D39: 202302010220 | E39: 126.9 | F39: 63.2 | G39: 73.90 | H39: 缺考
A40: 38 | B40: 邓丹 | C40: 六盘水市公安局01 | D40: 202302030428 | E40: 125.2 | F40: 缺考 | G40: =(E40/1.5)*0.5 -> 41.73 | H40: 缺考
A41: 39 | B41: 李文盛 | C41: 六盘水市公安局01 | D41: 202302034718 | E41: 124.5 | F41: 缺考 | G41: 41.50 | H41: 缺考
A42: 40 | B42: 李胜平 | C42: 六盘水市公安局01 | D42: 202303020413 | E42: 124.1 | F42: 缺考 | G42: 41.37 | H42: 缺考
A43: 41 | B43: 周吉 | C43: 六盘水市公安局01 | D43: 202303013630 | E43: 129.4 | F43: 82.6 | G43: 84.43 | H43: 合格
A44: 42 | B44: 朱朝阳 | C44: 六盘水市公安局01 | D44: 202303013017 | E44: 128.8 | F44: 81.6 | G44: 83.73 | H44: 合格
A45: 43 | B45: 刘金虎 | C45: 六盘水市公安局01 | D45: 202303032802 | E45: 129.7 | F45: 80.8 | G45: 83.63 | H45: 合格
A46: 44 | B46: 胡正芳 | C46: 六盘水市公安局01 | D46: 202303020309 | E46: 127.8 | F46: 80.8 | G46: 83.00 | H46: 合格
A47: 45 | B47: 王鸿 | C47: 六盘水市公安局01 | D47: 202303022510 | E47: 123.4 | F47: 82.8 | G47: 82.53 | H47: 合格
A48: 46 | B48: 邓甘辉 | C48: 六盘水市公安局01 | D48: 202303033012 | E48: 124.5 | F48: 81.2 | G48: 82.10 | H48: 合格
A49: 47 | B49: 胡崇珍 | C49: 六盘水市公安局01 | D49: 202303014430 | E49: 125.2 | F49: 80 | G49: 81.73 | H49: 合格
A50: 48 | B50: 胡仕俊 | C50: 六盘水市公安局01 | D50: 202303014215 | E50: 129.1 | F50: 76.8 | G50: 81.43 | H50: 合格
A51: 49 | B51: 高贵龙 | C51: 六盘水市公安局01 | D51: 202303010412 | E51: 127.3 | F51: 77.6 | G51: 81.23 | H51: 合格
A52: 50 | B52: 陈四维 | C52: 六盘水市公安局01 | D52: 202303012609 | E52: 125 | F52: 78.4 | G52: 80.87 | H52: 合格
A53: 51 | B53: 桂燕成 | C53: 六盘水市公安局01 | D53: 202303024625 | E53: 124.7 | F53: 76.4 | G53: 79.77 | H53: 合格
A54: 52 | B54: 宋易霖 | C54: 六盘水市公安局01 | D54: 202303022115 | E54: 125.6 | F54: 74.8 | G54: 79.27 | H54: 合格
A55: 53 | B55: 缪应松 | C55: 六盘水市公安局01 | D55: 202303024620 | E55: 124.6 | F55: 78.2 | G55: 80.63 | H55: 不合格
A56: 54 | B56: 汪东 | C56: 六盘水市公安局01 | D56: 202303034007 | E56: 124.3 | F56: 74.4 | G56: 78.63 | H56: 不合格
A57: 55 | B57: 李思源 | C57: 六盘水市公安局01 | D57: 202303030107 | E57: 123 | F57: 73.4 | G57: 77.70 | H57: 不合格
A58: 56 | B58: 王伟 | C58: 六盘水市公安局01 | D58: 202303012217 | E58: 128.3 | F58: 78.8 | G58: 82.17 | H58: 缺考
A59: 57 | B59: 张飙 | C59: 六盘水市公安局01 | D59: 202303023327 | E59: 124.5 | F59: 缺考 | G59: =(E59/1.5)*0.5 -> 41.50 | H59: 缺考
A60: 58 | B60: 龚忠翱 | C60: 六枝特区公安局02 | D60: 202304021413 | E60: 127.6 | F60: 75.8 | G60: 80.43 | H60: 合格
A61: 59 | B61: 毛小溪 | C61: 六枝特区公安局02 | D61: 202304014504 | E61: 125.7 | F61: 71.6 | G61: 77.70 | H61: 合格
A62: 60 | B62: 安乐 | C62: 六枝特区公安局02 | D62: 202304030406 | E62: 125 | F62: 71.8 | G62: 77.57 | H62: 合格
A63: 61 | B63: 王安睿 | C63: 六枝特区公安局02 | D63: 202304032527 | E63: 125.3 | F63: 81.4 | G63: 82.47 | H63: 不合格
A64: 62 | B64: 张蝶 | C64: 六枝特区公安局02 | D64: 202304010714 | E64: 126.1 | F64: 74.2 | G64: 79.13 | H64: 不合格
A65: 63 | B65: 李晶艳 | C65: 六枝特区公安局02 | D65: 202304010701 | E65: 125.9 | F65: 74.2 | G65: 79.07 | H65: 不合格
A66: 64 | B66: 钱杰 | C66: 六枝特区公安局02 | D66: 202305012622 | E66: 127 | F66: 77.8 | G66: 81.23 | H66: 合格
A67: 65 | B67: 付锡猛 | C67: 六枝特区公安局02 | D67: 202305023722 | E67: 124.5 | F67: 77.8 | G67: 80.40 | H67: 合格
A68: 66 | B68: 张磊 | C68: 六枝特区公安局02 | D68: 202305020312 | E68: 124.5 | F68: 77.6 | G68: 80.30 | H68: 合格
A69: 67 | B69: 王显贵 | C69: 六枝特区公安局02 | D69: 202305011723 | E69: 126.6 | F69: 75.4 | G69: 79.90 | H69: 合格
A70: 68 | B70: 唐野 | C70: 六枝特区公安局02 | D70: 202305021815 | E70: 125.3 | F70: 75.6 | G70: 79.57 | H70: 合格
A71: 69 | B71: 吴迪 | C71: 六枝特区公安局02 | D71: 202305013601 | E71: 126.1 | F71: 74.8 | G71: 79.43 | H71: 合格
A72: 70 | B72: 赵煜 | C72: 六枝特区公安局02 | D72: 202305011422 | E72: 125.4 | F72: 75.2 | G72: 79.40 | H72: 合格
A73: 71 | B73: 龙国嵘 | C73: 六枝特区公安局02 | D73: 202305023314 | E73: 127.8 | F73: 73.4 | G73: 79.30 | H73: 合格
A74: 72 | B74: 蔡志金 | C74: 六枝特区公安局02 | D74: 202305012906 | E74: 125.8 | F74: 73.2 | G74: 78.53 | H74: 合格
A75: 73 | B75: 毕远东 | C75: 六枝特区公安局02 | D75: 202305011115 | E75: 127.5 | F75: 79.2 | G75: 82.10 | H75: 不合格
A76: 74 | B76: 张开贵 | C76: 六枝特区公安局02 | D76: 202305034207 | E76: 125 | F76: 78.8 | G76: 81.07 | H76: 不合格
A77: 75 | B77: 王建平 | C77: 六枝特区公安局02 | D77: 202305032919 | E77: 128.4 | F77: 76.2 | G77: 80.90 | H77: 不合格
A78: 76 | B78: 王兴 | C78: 六枝特区公安局02 | D78: 202305020408 | E78: 125.4 | F78: 76.4 | G78: 80.00 | H78: 不合格
A79: 77 | B79: 李金 | C79: 六枝特区公安局02 | D79: 202305013005 | E79: 122 | F79: 78.6 | G79: 79.97 | H79: 不合格
A80: 78 | B80: 沈建 | C80: 六枝特区公安局02 | D80: 202305033401 | E80: 125.1 | F80: 75.6 | G80: 79.50 | H80: 不合格
A81: 79 | B81: 雷玉川 | C81: 六枝特区公安局02 | D81: 202305031314 | E81: 124.8 | F81: 75.8 | G81: 79.50 | H81: 不合格
A82: 80 | B82: 赵利伟 | C82: 六枝特区公安局02 | D82: 202305021119 | E82: 122 | F82: 77.4 | G82: 79.37 | H82: 不合格
A83: 81 | B83: 刘康康 | C83: 六枝特区公安局02 | D83: 202305010824 | E83: 122.4 | F83: 74.4 | G83: 78.00 | H83: 不合格
A84: 82 | B84: 罗周 | C84: 六枝特区公安局02 | D84: 202305033808 | E84: 123.1 | F84: 73.4 | G84: 77.73 | H84: 不合格
A85: 83 | B85: 代征东 | C85: 六枝特区公安局02 | D85: 202305020815 | E85: 123.6 | F85: 73 | G85: 77.70 | H85: 不合格
A86: 84 | B86: 赵耀 | C86: 六枝特区公安局02 | D86: 202305012410 | E86: 125.8 | F86: 71.4 | G86: 77.63 | H86: 不合格
A87: 85 | B87: 李鹏程 | C87: 六枝特区公安局02 | D87: 202305033803 | E87: 124.7 | F87: 71.6 | G87: 77.37 | H87: 不合格
A88: 86 | B88: 陈涛 | C88: 六枝特区公安局02 | D88: 202305021618 | E88: 123.3 | F88: 67 | G88: 74.60 | H88: 不合格
A89: 87 | B89: 刘豪 | C89: 六枝特区公安局02 | D89: 202305014605 | E89: 125.7 | F89: 69.6 | G89: 76.70 | H89: 缺考
A90: 88 | B90: 张义胜 | C90: 六枝特区公安局02 | D90: 202305030317 | E90: 122.4 | F90: 70.2 | G90: 75.90 | H90: 缺考
A91: 89 | B91: 李军 | C91: 六枝特区公安局02 | D91: 202305012701 | E91: 122.3 | F91: 缺考 | G91: =(E91/1.5)*0.5 -> 40.77 | H91: 缺考
A92: 90 | B92: 杨思泽 | C92: 六枝特区公安局02 | D92: 202305020229 | E92: 121.9 | F92: 缺考 | G92: =(E92/1.5)*0.5 -> 40.63 | H92: 缺考
A93: 91 | B93: 王晓倩 | C93: 盘州市公安局03 | D93: 202306033419 | E93: 134.7 | F93: 81.6 | G93: 85.70 | H93: 合格
A94: 92 | B94: 陆金燕 | C94: 盘州市公安局03 | D94: 202306032118 | E94: 134.2 | F94: 79 | G94: 84.23 | H94: 合格
A95: 93 | B95: 肖东旭 | C95: 盘州市公安局03 | D95: 202306023511 | E95: 126.9 | F95: 80.6 | G95: 82.60 | H95: 合格
A96: 94 | B96: 陈倩倩 | C96: 盘州市公安局03 | D96: 202306014017 | E96: 125.3 | F96: 79 | G96: 81.27 | H96: 合格
A97: 95 | B97: 杨从艳 | C97: 盘州市公安局03 | D97: 202306011913 | E97: 126.4 | F97: 78.2 | G97: 81.23 | H97: 合格
A98: 96 | B98: 王燕芹 | C98: 盘州市公安局03 | D98: 202306034522 | E98: 125.2 | F98: 79 | G98: 81.23 | H98: 合格
A99: 97 | B99: 李美思 | C99: 盘州市公安局03 | D99: 202306034726 | E99: 131.3 | F99: 74.8 | G99: 81.17 | H99: 合格
A100: 98 | B100: 卜曼玲 | C100: 盘州市公安局03 | D100: 202306014207 | E100: 127.9 | F100: 76.8 | G100: 81.03 | H100: 合格
A101: 99 | B101: 袁嫱 | C101: 盘州市公安局03 | D101: 202306020101 | E101: 126 | F101: 76.8 | G101: 80.40 | H101: 合格
A102: 100 | B102: 邓林支 | C102: 盘州市公安局03 | D102: 202306030128 | E102: 128.4 | F102: 73.4 | G102: 79.50 | H102: 合格
A103: 101 | B103: 郑姝玥 | C103: 盘州市公安局03 | D103: 202306020226 | E103: 125.1 | F103: 74.6 | G103: 79.00 | H103: 合格
A104: 102 | B104: 杨会珍 | C104: 盘州市公安局03 | D104: 202306031209 | E104: 125.2 | F104: 77.4 | G104: 80.43 | H104: 不合格
A105: 103 | B105: 谭倩男 | C105: 盘州市公安局03 | D105: 202306022414 | E105: 125.5 | F105: 77 | G105: 80.33 | H105: 不合格
A106: 104 | B106: 谢凤 | C106: 盘州市公安局03 | D106: 202306013123 | E106: 125 | F106: 75.2 | G106: 79.27 | H106: 不合格
A107: 105 | B107: 高芳 | C107: 盘州市公安局03 | D107: 202306023116 | E107: 125.8 | F107: 72.6 | G107: 78.23 | H107: 不合格
A108: 106 | B108: 王敏 | C108: 盘州市公安局03 | D108: 202306013329 | E108: 125.2 | F108: 72.8 | G108: 78.13 | H108: 缺考
A109: 107 | B109: 张英 | C109: 盘州市公安局03 | D109: 202306023617 | E109: 126.7 | F109: 缺考 | G109: =(E109/1.5)*0.5 -> 42.23 | H109: 缺考
A110: 108 | B110: 金青春 | C110: 盘州市公安局03 | D110: 202306010327 | E110: 125.3 | F110: 缺考 | G110: =(E110/1.5)*0.5 -> 41.77 | H110: 缺考
A111: 109 | B111: 杜美光 | C111: 盘州市公安局03 | D111: 202307022015 | E111: 133.2 | F111: 78.4 | G111: 83.60 | H111: 合格
A112: 110 | B112: 张涛 | C112: 盘州市公安局03 | D112: 202307010919 | E112: 126.8 | F112: 82.4 | G112: 83.47 | H112: 合格
A113: 111 | B113: 叶远久 | C113: 盘州市公安局03 | D113: 202307031721 | E113: 125.4 | F113: 80.4 | G113: 82.00 | H113: 合格
A114: 112 | B114: 罗义 | C114: 盘州市公安局03 | D114: 202307024402 | E114: 122 | F114: 76.4 | G114: 78.87 | H114: 合格
A115: 113 | B115: 吴光统 | C115: 盘州市公安局03 | D115: 202307014106 | E115: 125.2 | F115: 74.2 | G115: 78.83 | H115: 合格
A116: 114 | B116: 蒋昆 | C116: 盘州市公安局03 | D116: 202307032419 | E116: 123.2 | F116: 75.2 | G116: 78.67 | H116: 合格
A117: 115 | B117: 尹兴铙 | C117: 盘州市公安局03 | D117: 202307011525 | E117: 125 | F117: 73.8 | G117: 78.57 | H117: 合格
A118: 116 | B118: 高孟昌 | C118: 盘州市公安局03 | D118: 202307010126 | E118: 120.4 | F118: 76.4 | G118: 78.33 | H118: 合格
A119: 117 | B119: 何凯 | C119: 盘州市公安局03 | D119: 202307013416 | E119: 120.4 | F119: 75.8 | G119: 78.03 | H119: 合格
A120: 118 | B120: 毛江 | C120: 盘州市公安局03 | D120: 202307030209 | E120: 121.5 | F120: 74.4 | G120: 77.70 | H120: 合格
A121: 119 | B121: 邓永星 | C121: 盘州市公安局03 | D121: 202307021015 | E121: 121.7 | F121: 72 | G121: 76.57 | H121: 合格
A122: 120 | B122: 韦传刚 | C122: 盘州市公安局03 | D122: 202307011129 | E122: 126 | F122: 67.2 | G122: 75.60 | H122: 合格
A123: 121 | B123: 朱佳松 | C123: 盘州市公安局03 | D123: 202307022828 | E123: 120.5 | F123: 70.8 | G123: 75.57 | H123: 合格
A124: 122 | B124: 韩熊 | C124: 盘州市公安局03 | D124: 202307011911 | E124: 121.3 | F124: 68.8 | G124: 74.83 | H124: 合格
A125: 123 | B125: 纪兴树 | C125: 盘州市公安局03 | D125: 202307011501 | E125: 127.5 | F125: 83.6 | G125: 84.30 | H125: 不合格
A126: 124 | B126: 陈浪 | C126: 盘州市公安局03 | D126: 202307010803 | E126: 125.4 | F126: 83 | G126: 83.30 | H126: 不合格
A127: 125 | B127: 杨仲 | C127: 盘州市公安局03 | D127: 202307010421 | E127: 121.3 | F127: 81.4 | G127: 81.13 | H127: 不合格
A128: 126 | B128: 胡亮 | C128: 盘州市公安局03 | D128: 202307010703 | E128: 127 | F128: 76.4 | G128: 80.53 | H128: 不合格
A129: 127 | B129: 骆仿果 | C129: 盘州市公安局03 | D129: 202307024303 | E129: 129.2 | F129: 72 | G129: 79.07 | H129: 不合格
A130: 128 | B130: 陈经智 | C130: 盘州市公安局03 | D130: 202307011118 | E130: 124 | F130: 74.4 | G130: 78.53 | H130: 不合格
A131: 129 | B131: 廖杨海 | C131: 盘州市公安局03 | D131: 202307034608 | E131: 120.8 | F131: 73.8 | G131: 77.17 | H131: 不合格
A132: 130 | B132: 陈景学 | C132: 盘州市公安局03 | D132: 202307014429 | E132: 124.6 | F132: 71 | G132: 77.03 | H132: 不合格
A133: 131 | B133: 陈在位 | C133: 盘州市公安局03 | D133: 202307022401 | E133: 121.1 | F133: 69.8 | G133: 75.27 | H133: 不合格
A134: 132 | B134: 唐守江 | C134: 盘州市公安局03 | D134: 202307031127 | E134: 123.7 | F134: 74.2 | G134: 78.33 | H134: 缺考
A135: 133 | B135: 孔维全 | C135: 盘州市公安局03 | D135: 202307022118 | E135: 126.7 | F135: 缺考 | G135: =(E135/1.5)*0.5 -> 42.23 | H135: 缺考
A136: 134 | B136: 朱成雄 | C136: 盘州市公安局03 | D136: 202307024304 | E136: 123.8 | F136: 缺考 | G136: 41.27 | H136: 缺考
A137: 135 | B137: 柳明显 | C137: 盘州市公安局03 | D137: 202307030203 | E137: 121.5 | F137: 缺考 | G137: 40.50 | H137: 缺考
A138: 136 | B138: 苏东杰 | C138: 盘州市公安局03 | D138: 202307014428 | E138: 120.8 | F138: 缺考 | G138: 40.27 | H138: 缺考
A139: 137 | B139: 尹文盛 | C139: 盘州市公安局03 | D139: 202308012421 | E139: 123.4 | F139: 83.2 | G139: 82.73 | H139: 合格
A140: 138 | B140: 王安地 | C140: 盘州市公安局03 | D140: 202308022408 | E140: 133.3 | F140: 74 | G140: 81.43 | H140: 合格
A141: 139 | B141: 汤佳新 | C141: 盘州市公安局03 | D141: 202308021728 | E141: 129.1 | F141: 74.2 | G141: 80.13 | H141: 合格
A142: 140 | B142: 张东 | C142: 盘州市公安局03 | D142: 202308010223 | E142: 123.2 | F142: 76.6 | G142: 79.37 | H142: 合格
A143: 141 | B143: 张谨 | C143: 盘州市公安局03 | D143: 202308024003 | E143: 128.8 | F143: 72.4 | G143: 79.13 | H143: 合格
A144: 142 | B144: 缪祥超 | C144: 盘州市公安局03 | D144: 202308033625 | E144: 123.4 | F144: 75.8 | G144: 79.03 | H144: 合格
A145: 143 | B145: 陈余美 | C145: 盘州市公安局03 | D145: 202308013225 | E145: 125.6 | F145: 74.2 | G145: 78.97 | H145: 合格
A146: 144 | B146: 薛钏 | C146: 盘州市公安局03 | D146: 202308021523 | E146: 124 | F146: 73.8 | G146: 78.23 | H146: 合格
A147: 145 | B147: 徐屏 | C147: 盘州市公安局03 | D147: 202308012426 | E147: 122.4 | F147: 74.8 | G147: 78.20 | H147: 合格
A148: 146 | B148: 张路浩 | C148: 盘州市公安局03 | D148: 202308031210 | E148: 126.1 | F148: 75.4 | G148: 79.73 | H148: 不合格
A149: 147 | B149: 丁红武 | C149: 盘州市公安局03 | D149: 202308011019 | E149: 122.4 | F149: 77.8 | G149: 79.70 | H149: 不合格
A150: 148 | B150: 郑其烈 | C150: 盘州市公安局03 | D150: 202308021313 | E150: 128.1 | F150: 73.6 | G150: 79.50 | H150: 不合格
A151: 149 | B151: 赵坚 | C151: 盘州市公安局03 | D151: 202308012122 | E151: 122.6 | F151: 75 | G151: 78.37 | H151: 不合格
A152: 150 | B152: 张江鸿 | C152: 盘州市公安局03 | D152: 202308012210 | E152: 126.2 | F152: 71.6 | G152: 77.87 | H152: 不合格
A153: 151 | B153: 包广雄 | C153: 盘州市公安局03 | D153: 202308021521 | E153: 128.9 | F153: 67.4 | G153: 76.67 | H153: 不合格
A154: 152 | B154: 金人 | C154: 盘州市公安局03 | D154: 202308033328 | E154: 123 | F154: 70.6 | G154: 76.30 | H154: 不合格
A155: 153 | B155: 王洪林 | C155: 盘州市公安局03 | D155: 202308020614 | E155: 122.8 | F155: 68.6 | G155: 75.23 | H155: 不合格
A156: 154 | B156: 胡玉伟 | C156: 盘州市公安局03 | D156: 202308012201 | E156: 123.2 | F156: 66 | G156: 74.07 | H156: 不合格
A157: 155 | B157: 李俊涛 | C157: 盘州市公安局03 | D157: 202308020518 | E157: 122.6 | F157: 73 | G157: 77.37 | H157: 缺考
A158: 156 | B158: 代金武 | C158: 盘州市公安局03 | D158: 202308032121 | E158: 125.3 | F158: 缺考 | G158: =(E158/1.5)*0.5 -> 41.77 | H158: 缺考
A159: 157 | B159: 吴嘉豪 | C159: 盘州市公安局03 | D159: 202308030304 | E159: 122.4 | F159: 缺考 | G159: =(E159/1.5)*0.5 -> 40.80 | H159: 缺考
A160: 158 | B160: 邹义平 | C160: 六盘水市公安局钟山分局04 | D160: 202309010318 | E160: 128.1 | F160: 80.8 | G160: 83.10 | H160: 合格
A161: 159 | B161: 王钰 | C161: 六盘水市公安局钟山分局04 | D161: 202309030906 | E161: 128.5 | F161: 80.2 | G161: 82.93 | H161: 合格
A162: 160 | B162: 罗智凯 | C162: 六盘水市公安局钟山分局04 | D162: 202309020716 | E162: 129 | F162: 79.2 | G162: 82.60 | H162: 合格
A163: 161 | B163: 赵京京 | C163: 六盘水市公安局钟山分局04 | D163: 202309011317 | E163: 126 | F163: 80.2 | G163: 82.10 | H163: 合格
A164: 162 | B164: 温洪风 | C164: 六盘水市公安局钟山分局04 | D164: 202309012920 | E164: 127.6 | F164: 78 | G164: 81.53 | H164: 合格
A165: 163 | B165: 杨明伟 | C165: 六盘水市公安局钟山分局04 | D165: 202309033519 | E165: 127.1 | F165: 78.2 | G165: 81.47 | H165: 合格
A166: 164 | B166: 姚茂福 | C166: 六盘水市公安局钟山分局04 | D166: 202309012107 | E166: 128.9 | F166: 76.8 | G166: 81.37 | H166: 合格
A167: 165 | B167: 朱琦 | C167: 六盘水市公安局钟山分局04 | D167: 202309032827 | E167: 125.7 | F167: 78.4 | G167: 81.10 | H167: 合格
A168: 166 | B168: 徐蜀 | C168: 六盘水市公安局钟山分局04 | D168: 202309023524 | E168: 129.2 | F168: 75.2 | G168: 80.67 | H168: 合格
A169: 167 | B169: 卯明忠 | C169: 六盘水市公安局钟山分局04 | D169: 202309021213 | E169: 129.4 | F169: 75 | G169: 80.63 | H169: 合格
A170: 168 | B170: 赵韵 | C170: 六盘水市公安局钟山分局04 | D170: 202309011826 | E170: 125.9 | F170: 76.8 | G170: 80.37 | H170: 合格
A171: 169 | B171: 李芪 | C171: 六盘水市公安局钟山分局04 | D171: 202309010604 | E171: 129.5 | F171: 73.4 | G171: 79.87 | H171: 合格
A172: 170 | B172: 管庆义 | C172: 六盘水市公安局钟山分局04 | D172: 202309024629 | E172: 126.3 | F172: 75.2 | G172: 79.70 | H172: 合格
A173: 171 | B173: 邹肖 | C173: 六盘水市公安局钟山分局04 | D173: 202309011307 | E173: 128.1 | F173: 71.8 | G173: 78.60 | H173: 合格
A174: 172 | B174: 付胜鑫 | C174: 六盘水市公安局钟山分局04 | D174: 202309031414 | E174: 126.5 | F174: 72.4 | G174: 78.37 | H174: 合格
A175: 173 | B175: 彭怡都 | C175: 六盘水市公安局钟山分局04 | D175: 202309023405 | E175: 128.8 | F175: 80.8 | G175: 83.33 | H175: 不合格
A176: 174 | B176: 何海东 | C176: 六盘水市公安局钟山分局04 | D176: 202309024314 | E176: 128.5 | F176: 79.8 | G176: 82.73 | H176: 不合格
A177: 175 | B177: 蒋帝炫 | C177: 六盘水市公安局钟山分局04 | D177: 202309012329 | E177: 131.1 | F177: 78 | G177: 82.70 | H177: 不合格
A178: 176 | B178: 李康 | C178: 六盘水市公安局钟山分局04 | D178: 202309023015 | E178: 126 | F178: 79.4 | G178: 81.70 | H178: 不合格
A179: 177 | B179: 杨小龙 | C179: 六盘水市公安局钟山分局04 | D179: 202309031921 | E179: 126.4 | F179: 77.6 | G179: 80.93 | H179: 不合格
A180: 178 | B180: 陶伟权 | C180: 六盘水市公安局钟山分局04 | D180: 202309023225 | E180: 130.5 | F180: 74.8 | G180: 80.90 | H180: 不合格
A181: 179 | B181: 吴宇 | C181: 六盘水市公安局钟山分局04 | D181: 202309013708 | E181: 126.5 | F181: 77.4 | G181: 80.87 | H181: 不合格
A182: 180 | B182: 黄平利 | C182: 六盘水市公安局钟山分局04 | D182: 202309014107 | E182: 127 | F182: 75.2 | G182: 79.93 | H182: 不合格
A183: 181 | B183: 程灿 | C183: 六盘水市公安局钟山分局04 | D183: 202309024608 | E183: 125.7 | F183: 73.6 | G183: 78.70 | H183: 不合格
A184: 182 | B184: 钟以智 | C184: 六盘水市公安局钟山分局04 | D184: 202309032403 | E184: 126.2 | F184: 69.8 | G184: 76.97 | H184: 缺考
A185: 183 | B185: 魏翔 | C185: 六盘水市公安局钟山分局04 | D185: 202309022503 | E185: 127.7 | F185: 缺考 | G185: =(E185/1.5)*0.5 -> 42.57 | H185: 缺考
A186: 184 | B186: 王立宏 | C186: 六盘水市公安局钟山分局04 | D186: 202309010621 | E186: 127.1 | F186: 缺考 | G186: =(E186/1.5)*0.5 -> 42.37 | H186: 缺考
A187: 185 | B187: 丁锐灵 | C187: 六盘水市公安局钟山分局04 | D187: 202310024528 | E187: 125 | F187: 82.6 | G187: 82.97 | H187: 合格
A188: 186 | B188: 丁野 | C188: 六盘水市公安局钟山分局04 | D188: 202310033305 | E188: 125.2 | F188: 81.2 | G188: 82.33 | H188: 合格
A189: 187 | B189: 邓渊 | C189: 六盘水市公安局钟山分局04 | D189: 202310022030 | E189: 125.4 | F189: 80.8 | G189: 82.20 | H189: 合格
A190: 188 | B190: 颜雷 | C190: 六盘水市公安局钟山分局04 | D190: 202310010429 | E190: 129.7 | F190: 77.4 | G190: 81.93 | H190: 合格
A191: 189 | B191: 吴海荣 | C191: 六盘水市公安局钟山分局04 | D191: 202310023526 | E191: 126.1 | F191: 78.2 | G191: 81.13 | H191: 合格
A192: 190 | B192: 陈星 | C192: 六盘水市公安局钟山分局04 | D192: 202310012713 | E192: 125.7 | F192: 77.6 | G192: 80.70 | H192: 合格
A193: 191 | B193: 段章斌 | C193: 六盘水市公安局钟山分局04 | D193: 202310034723 | E193: 125 | F193: 68.2 | G193: 75.77 | H193: 合格
A194: 192 | B194: 张才勇 | C194: 六盘水市公安局钟山分局04 | D194: 202310021011 | E194: 130.2 | F194: 76.2 | G194: 81.50 | H194: 不合格
A195: 193 | B195: 王权 | C195: 六盘水市公安局钟山分局04 | D195: 202310012115 | E195: 127.2 | F195: 78.2 | G195: 81.50 | H195: 不合格
A196: 194 | B196: 肖鑫 | C196: 六盘水市公安局钟山分局04 | D196: 202310030124 | E196: 125.5 | F196: 78.4 | G196: 81.03 | H196: 不合格
A197: 195 | B197: 柯昌勇 | C197: 六盘水市公安局钟山分局04 | D197: 202310032807 | E197: 126.6 | F197: 75.4 | G197: 79.90 | H197: 不合格
A198: 196 | B198: 程磊 | C198: 六盘水市公安局钟山分局04 | D198: 202310014425 | E198: 126.1 | F198: 75 | G198: 79.53 | H198: 不合格
A199: 197 | B199: 罗经纬 | C199: 六盘水市公安局钟山分局04 | D199: 202310023216 | E199: 126.4 | F199: 72.8 | G199: 78.53 | H199: 不合格
A200: 198 | B200: 罗开元 | C200: 六盘水市公安局钟山分局04 | D200: 202310023804 | E200: 125.9 | F200: 71 | G200: 77.47 | H200: 不合格
... 15 more rows
